Cogmind - Beta 11.1 --- EXPLORER MODE // 2022.05.04 @ 12:30:58 Player: Grimbling Result: Destroyed by G-73 Enforcer with Phase Gun Performance ------------- Evolutions (8) 4000 Regions Visited (20) 4000 Robots Destroyed (461) 2305 Value Destroyed (23558) 23558 Prototype IDs (72) 1440 Alien Tech Used (5) 1000 Bonus (9597) 9597 TOTAL SCORE: 45900 Bonus ------- High Alert Combat Kills 4827 Follower Combat Kills 837 Entered Garrisons 200 Met Data Miner 300 Hacked Protovariant 500 Acquired SGEMP 2000 Met Sigix 2000 Friendly Fire -1067 Cogmind --------- Core Integrity 0/1450 Matter 286/300 Energy 94/100 System Corruption 19% Temperature Danger (493) Movement Core (50) Location -2/Section 7 Parts ------- > --- POWER (3) -------- (None) > --- PROPULSION (5) --- (None) > --- UTILITY (14) ----- Structural Scanner > --- WEAPON (2) ------- (None) > --- INVENTORY (5) ---- Micro Antimatter Reactor Quantum Reactor Enhanced Nova Cannon Sigix Containment Pod Peak State ------------ > --- POWER ------------ Quantum Reactor Vortex Chain Reactor > --- PROPULSION ------- Enhanced Armored Medium Treads Enhanced Armored Medium Treads Biometal Medium Treads Advanced Heavy Treads > --- UTILITY ---------- Experimental Power Amplifier Advanced Heat Sink Advanced Heat Sink Advanced Heat Sink Experimental Cooling System Large Storage Unit Experimental Energy Well Advanced Sensor Array Quantum Capacitor Advanced Transmission Jammer Centrium Heavy Armor Plating Experimental Hardlight Generator > --- WEAPON ----------- Improved Potential Cannon > --- INVENTORY -------- Light Antimatter Reactor Light Antimatter Reactor Light Particle Reactor Compact Particle Reactor Biometal Heavy Treads Huge Storage Unit Energy Filter EM Disruption Field Enhanced Nova Cannon Disintegrator Z-bomb Delivery System SGEMP Prototype [Rating: 204] Favorites ----------- Power Cooled Ion Engine Engine Cooled Ion Engine Power Core Reinforced Fission Core Reactor Light Antimatter Reactor Propulsion Armored Treads Treads Armored Treads Leg Flexi-carbon Leg Wheel Wheel Utility Advanced Heat Sink Device Advanced Heat Sink Storage Large Storage Unit Processor Improved Signal Interpreter Hackware System Shield Protection Layered Medium Armor Plating Weapon Neutron Cannon Energy Gun Advanced Beam Rifle Energy Cannon Neutron Cannon Launcher Long-range Missile Launcher Special Weapon Improved Remote Datajack Impact Weapon Shock Maul Build | -11 -10 -9 -8 -8 -8 -6 -6 -6 -6 -5 -5 -5 -5 -4 -4 -3 -3 -2 -2 -2 ------- Run | Scr Mat Mat Mat Sto Rec Fac Low Low Dat Pro Fac Gar Fac Fac Arm Res Tes Res Qua Sec Slots Evolved 17 | . 1 2 2 . . 4 . . . . 2 . . 2 . 2 . 2 . . Power 2 | . . . 1 . . 1 . . . . . . . . . . . . . . Propulsion 3 | . . . 1 . . 1 . . . . 1 . . . . . . . . . Utility 12 | . 1 2 . . . 2 . . . . 1 . . 2 . 2 . 2 . . Weapon . | . . . . . . . . . . . . . . . . . . . . . Parts Attached 383 | 6 4 9 12 17 2 10 3 3 . 30 16 16 16 69 30 10 59 7 53 11 Power 69 | 1 . 2 2 3 . 1 1 1 . 8 1 2 4 13 8 3 10 1 5 3 Engine 16 | 1 . 2 2 3 . . 1 1 . 4 1 1 . . . . . . . . Core 19 | . . . . . . 1 . . . 4 . 1 4 3 . 2 2 . 1 1 Reactor 34 | . . . . . . . . . . . . . . 10 8 1 8 1 4 2 Propulsion 64 | 2 . 2 4 3 1 4 1 1 . 5 5 2 3 9 7 1 5 . 5 4 Treads 56 | 2 . 2 4 3 1 4 1 1 . 5 5 2 3 4 7 1 5 . 5 1 Leg 5 | . . . . . . . . . . . . . . 5 . . . . . . Wheel 3 | . . . . . . . . . . . . . . . . . . . . 3 Hover . | . . . . . . . . . . . . . . . . . . . . . Flight . | . . . . . . . . . . . . . . . . . . . . . Utility 131 | 2 3 3 2 4 . 4 . 1 . 8 2 7 5 30 9 6 20 5 19 1 Device 87 | 1 2 2 1 4 . 1 . 1 . 5 1 5 3 15 8 6 17 3 11 1 Storage 23 | 1 1 . . . . . . . . 1 . . 2 12 1 . 1 2 2 . Processor 8 | . . 1 1 . . 1 . . . . . . . 2 . . . . 3 . Hackware 4 | . . . . . . 1 . . . . . . . 1 . . 1 . 1 . Protection 9 | . . . . . . 1 . . . 2 1 2 . . . . 1 . 2 . Artifact . | . . . . . . . . . . . . . . . . . . . . . Weapon 119 | 1 1 2 4 7 1 1 1 . . 9 8 5 4 17 6 . 24 1 24 3 Energy Gun 36 | 1 1 2 4 5 . 1 1 . . 6 4 . 1 4 2 . 3 . 1 . Energy Cannon 68 | . . . . . 1 . . . . 1 2 3 2 11 3 . 20 1 21 3 Ballistic Gun . | . . . . . . . . . . . . . . . . . . . . . Ballistic Cannon . | . . . . . . . . . . . . . . . . . . . . . Launcher 12 | . . . . . . . . . . 2 2 2 . 2 1 . 1 . 2 . Special Weapon 1 | . . . . . . . . . . . . . 1 . . . . . . . Impact Weapon 2 | . . . . 2 . . . . . . . . . . . . . . . . Slashing Weapon . | . . . . . . . . . . . . . . . . . . . . . Piercing Weapon . | . . . . . . . . . . . . . . . . . . . . . Special Melee Weapon . | . . . . . . . . . . . . . . . . . . . . . Unidentified Prototypes 51 | . . 1 1 4 . . . . . 4 1 . 3 5 2 . 17 1 12 . Parts Lost 102 | . . 2 1 1 . 5 . . . 17 . 1 1 19 16 2 5 . 28 4 Power 22 | . . . . . . . . . . 5 . . . 7 6 . . . 4 . Propulsion 23 | . . . . . . 2 . . . 2 . . . 5 2 1 4 . 3 4 Utility 44 | . . 1 1 1 . 2 . . . 5 . 1 1 5 6 1 . . 20 . Weapon 13 | . . 1 . . . 1 . . . 5 . . . 2 2 . 1 . 1 . Highest Loss Streak 20 | . . 1 1 1 . 3 . . . 14 . 1 1 4 7 2 2 . 20 4 To Critical Strikes 6 | . . . . . . . . . . 2 . . . 1 1 . 2 . . . Average Slot Usage (%) 86 | . 87 99 95 95 96 89 100 94 93 90 88 96 86 73 81 61 79 82 78 17 Engine 5 | . 12 9 16 16 16 12 12 11 12 2 1 5 2 . . . . . . . Core 4 | . . . . . . 1 6 1 . 10 11 11 13 5 . 5 . . . . Reactor 3 | . . . . . . . . . . . . . . 8 13 2 12 12 9 6 Treads 20 | . 25 20 24 25 21 24 25 25 25 24 25 24 16 13 12 17 17 16 15 3 Device 23 | . 22 29 20 20 25 16 18 21 25 17 16 21 22 24 30 21 31 36 35 2 Storage 9 | . 12 10 8 8 8 6 6 6 6 10 11 11 12 11 7 9 9 8 7 . Processor 3 | . . 10 8 8 8 6 12 12 12 1 . . . 1 4 . . . 1 . Protection 3 | . . . . . . 3 . . . 9 11 11 6 . . . 3 4 4 . Energy Gun 5 | . 14 19 15 15 8 6 12 12 12 6 7 . . 1 4 . . . . . Energy Cannon 4 | . . . . . 7 5 . . . 4 2 10 11 5 4 4 2 3 3 2 Naked Turns 64 | . . . . . . . . . . . . . . . . . . . 45 19 Heaviest Build 190 | 18 30 35 47 47 48 54 58 58 53 83 98 101 101 100 100 97 120 190 147 42 Greatest Support 190 | 40 40 40 60 60 60 80 80 80 80 89 144 144 170 170 190 173 175 175 180 30 Greatest Overweight (x) 5 | . . . . . 1 . . . . 1 . . . 3 1 . . 1 5 4 Average Overweight (x) . | . . . . . . . . . . . . . . . . . . . . . Largest Inventory Capacity 25 | 10 15 15 15 15 15 15 15 15 15 15 15 15 15 15 15 15 15 25 15 5 Average Capacity 14 | 8 12 15 15 15 15 15 15 15 15 15 15 15 15 15 15 15 15 15 14 5 Most Carried 15 | 6 13 15 15 15 14 12 15 15 15 15 15 15 15 15 15 7 15 14 15 5 Average Carried 12 | 3 10 13 13 13 13 11 12 14 15 12 13 14 13 11 12 5 13 12 13 2 Final Capacity 15 | 10 15 15 15 15 15 15 15 15 15 15 15 15 15 15 15 15 15 15 5 5 Final Carried 15 | 6 13 14 14 14 13 10 13 15 15 14 14 15 14 11 14 7 15 14 4 5 Class Distribution -------------------- 42% | Scavenger-Mutant 21% | Generator-Mutant 17% | Hacker-Skirmisher 14% | Hacker-Mutant 3% | Scavenger-Skirmisher Dominant Class ---------------- Hacker-Mutant | -10/Materials Hacker-Mutant | -9/Materials Hacker-Mutant | -8/Materials Hacker-Mutant | -8/Storage Hacker-Skirmisher | -8/Recycling Hacker-Skirmisher | -6/Factory Hacker-Skirmisher | -6/Lower Caves Hacker-Skirmisher | -6/Lower Caves Scavenger-Skirmisher | -6/Data Miner Scavenger-Mutant | -5/Proximity Caves Scavenger-Mutant | -5/Factory Scavenger-Mutant | -5/Garrison Scavenger-Mutant | -5/Factory Scavenger-Mutant | -4/Factory Scavenger-Mutant | -4/Armory Hacker-Mutant | -3/Research Generator-Mutant | -3/Testing Generator-Mutant | -2/Research Generator-Mutant | -2/Quarantine Scavenger-Mutant | -2/Section 7 Resources | -11 -10 -9 -8 -8 -8 -6 -6 -6 -6 -5 -5 -5 -5 -4 -4 -3 -3 -2 -2 -2 ----------- Run | Scr Mat Mat Mat Sto Rec Fac Low Low Dat Pro Fac Gar Fac Fac Arm Res Tes Res Qua Sec Matter Collected 6519 | 248 52 90 115 163 70 85 97 80 . 492 201 220 163 2405 255 247 722 10 701 103 Remotely 50 | . . . . . . . . . . . . . . . . . 50 . . . Salvage Created 23176 | . 476 552 795 853 534 520 366 . . 1055 330 1342 1186 4644 1663 868 3791 210 3863 128 Parts 953 | . 22 29 34 44 30 18 10 . . 24 9 43 54 209 56 39 150 6 168 8 Haulers Intercepted 19 | . 2 2 . 6 . . . . . . 1 . . 4 . . 2 . 2 . Recyclers Shooed 10 | . . . . . 2 . . . . . 2 . 1 4 . . . . 1 . Parts Field Recycled . | . . . . . . . . . . . . . . . . . . . . . Retrieved Matter . | . . . . . . . . . . . . . . . . . . . . . Parts Self-Destructed . | . . . . . . . . . . . . . . . . . . . . . Prevented . | . . . . . . . . . . . . . . . . . . . . . Kills | -11 -10 -9 -8 -8 -8 -6 -6 -6 -6 -5 -5 -5 -5 -4 -4 -3 -3 -2 -2 -2 ------- Run | Scr Mat Mat Mat Sto Rec Fac Low Low Dat Pro Fac Gar Fac Fac Arm Res Tes Res Qua Sec Combat Hostiles Destroyed 329 | . 6 12 14 11 18 9 3 . . 18 3 27 13 50 30 7 55 2 50 1 Guns 77 | . 6 12 14 11 10 2 3 . . 10 2 . . 3 4 . . . . . Cannons 156 | . . . . . 7 4 . . . 3 . 23 11 37 17 7 31 . 15 1 AOE 45 | . . . . . . . . . . 3 1 1 2 3 6 . 18 . 11 . Classes Destroyed 24 | . 6 2 1 2 1 1 1 . . 2 . 1 . 1 1 . 4 . 1 . Worker 26 | . . 2 . . . . . . . . . . 3 14 . . 2 . 4 1 Builder 24 | . . . . 2 . . . . . . . . 5 10 . 1 4 . 1 1 Tunneler 2 | . . . . . . . . . . . . . . 1 . 1 . . . . Hauler 19 | . 2 2 . 6 . . . . . . 1 . . 4 . . 2 . 2 . Recycler 22 | . 2 . . . 5 . . . . . . . 3 6 . 2 2 . 2 . Carrier 2 | . . . . . . . . . . . . . . . . . 2 . . . Mechanic 4 | . 1 . . . . . . . . . . . . . . . 3 . . . Operator 7 | . . . 1 . . . . . . . . . . . 1 . 2 . 3 . Drone 18 | . . . . . 18 . . . . . . . . . . . . . . . Watcher 23 | . 1 . 2 1 . 1 . . . . . 1 3 8 1 . 2 . 3 . Swarmer 43 | . 2 5 . 2 . . 2 . . 1 . 12 1 8 7 . 3 . . . Grunt 107 | . 4 5 9 6 . 5 . . . 10 2 11 2 13 10 2 13 . 15 . Brawler 12 | . . . . . . . . . . 4 . . 1 . . . 3 . 4 . Duelist 11 | . . . . . . . . . . 1 . . 1 . 4 . 3 . 2 . Protector 4 | . . . . . . . . . . . . . . . 1 . 1 . 2 . Researcher 2 | . . . . . . . . . . . . . . . . . . . 2 . Sentry 26 | . . 2 5 2 . . . . . 1 1 . 3 6 1 1 2 2 . . Specialist 6 | . . . . . . . . . . . . . . . . . 5 . 1 . Hunter 33 | . . . . 1 . 2 . . . . . 2 1 12 3 2 3 . 6 1 Programmer 57 | . . . . . . 2 . . . 1 . . 4 11 4 1 18 . 16 . Behemoth 3 | . . . . . . . . . . . . 2 . . . 1 . . . . Lightning 3 | . . . . . . . . . . . . . . . . . . . 3 . Striker 2 | . . . . . . . . . . . . . . . . . 2 . . . Alpha 7 2 | . . . . . . . . . . . . . . . . . 1 . 1 . Protovariant G 1 | . . . . . . . . . . . . . . . . . 1 . . . Thug 1 | . . . . . . . . . . . . . . 1 . . . . . . Mutant 1 | . . . . . . . 1 . . . . . . . . . . . . . Best Kill Streak 16 | . 3 4 5 4 5 3 2 . . 7 1 7 8 16 8 7 7 2 8 1 Combat Bots Only 8 | . 2 4 5 4 3 3 2 . . 7 1 7 3 8 8 3 5 2 5 1 Max Kills in Single Turn 11 | . 1 1 1 1 1 1 1 . . 2 1 1 2 11 3 1 3 1 4 1 Gunslinging 1 | . . . . . . . . . . 1 . . . . . . . . . . Exploded 3 | . . . . . . . . . . 2 1 1 1 2 3 . 2 . 2 . Melee . | . . . . . . . . . . . . . . . . . . . . . Uniques/NPCs Destroyed . | . . . . . . . . . . . . . . . . . . . . . Combat | -11 -10 -9 -8 -8 -8 -6 -6 -6 -6 -5 -5 -5 -5 -4 -4 -3 -3 -2 -2 -2 -------- Run | Scr Mat Mat Mat Sto Rec Fac Low Low Dat Pro Fac Gar Fac Fac Arm Res Tes Res Qua Sec Damage Taken 26208 | . 162 561 417 539 . 1045 108 345 . 1561 256 1258 552 3670 4234 1040 2676 418 6700 666 Core 3274 | . 29 132 73 85 . 82 18 107 . 363 . 112 31 437 497 139 169 . 791 209 Absorbed by Shields 2013 | . . . . . . . . . . . . 187 591 406 189 . . 110 530 . Reduced by Siege Mode 74 | . . . . . . . . . . . . . . . . . . . 74 . Redirected to Shielding 36 | . . . . . . . . . . . . 23 13 . . . . . . . Regen/Repaired (Parts) 281 | . . . . . . . . . . . 281 . . . . . . . . . Core Remaining (%) 67 | 100 88 67 . . 71 . . . . 32 . . 85 . 18 . 76 . . . Volleys Fired 1537 | . 65 67 45 52 44 48 18 4 . 119 22 187 55 293 133 49 151 9 164 12 Largest 2 | . 2 2 2 2 2 2 2 2 . 2 2 2 2 2 2 1 1 1 1 1 Hottest 300 | . 90 90 138 138 121 122 136 136 . 170 155 188 188 188 185 120 200 200 300 120 Shots Fired 2117 | . 70 89 90 103 88 94 36 10 . 172 44 363 98 327 144 49 155 9 164 12 Gun 696 | . 70 89 90 103 49 53 36 10 . 87 43 . . 33 33 . . . . . Cannon 1408 | . . . . . 39 41 . . . 80 . 363 98 294 105 49 155 9 163 12 Launcher 13 | . . . . . . . . . . 5 1 . . . 6 . . . 1 . Special . | . . . . . . . . . . . . . . . . . . . . . Kinetic . | . . . . . . . . . . . . . . . . . . . . . Thermal 2037 | . 70 87 90 103 88 94 36 10 . 167 43 363 98 270 138 49 155 9 155 12 Explosive 12 | . . . . . . . . . . 5 1 . . . 6 . . . . . Electromagnetic 68 | . . 2 . . . . . . . . . . . 57 . . . . 9 . Robot Hit Streak 61 | . 48 29 49 33 11 24 10 4 . 22 41 28 38 31 61 22 30 9 39 6 Robot Miss Streak 3 | . 3 2 1 2 2 1 1 1 . 1 1 2 2 3 1 1 3 1 1 1 Penetration Max 2 | . . . . . . . . . . . . . . . . . 1 1 2 . Secondary Targets 5 | . . . . . . 1 . . . 3 1 . . . . . . . . . Max Gunslinging Chain 1 | . . . . . . 1 . . . 1 1 . . . . . . . . . Capacitor 598 | . . . . . . . . . . . . . . 257 86 49 155 9 42 . Shots Hit Robots 1487 | . 63 80 79 74 50 81 25 6 . 90 41 114 83 276 119 41 116 7 132 10 Core Hits 682 | . 22 29 36 28 22 21 11 2 . 44 10 44 38 133 55 20 79 1 83 4 Critical Kills 47 | . . . . . 1 . . . . . 1 4 1 3 2 . 6 2 27 . Critical Parts Destroyed 12 | . . . . . . . . . . . 2 . . 3 . . . . 7 . Critical Strikes 109 | . 8 1 7 3 5 9 3 . . 8 3 4 1 7 2 . 6 2 40 . Burn 43 | . 8 1 7 3 4 9 3 . . 8 . . . . . . . . . . Meltdown 44 | . . . . . 1 . . . . . . 4 1 2 2 . 6 2 26 . Destroy 21 | . . . . . . . . . . . 3 . . 4 . . . . 14 . Corrupt 1 | . . . . . . . . . . . . . . 1 . . . . . . Melee Attacks 6 | . . . . 6 . . . . . . . . . . . . . . . . Impact 6 | . . . . 6 . . . . . . . . . . . . . . . . Slashing . | . . . . . . . . . . . . . . . . . . . . . Piercing . | . . . . . . . . . . . . . . . . . . . . . Sneak Attacks . | . . . . . . . . . . . . . . . . . . . . . Combat Hostiles . | . . . . . . . . . . . . . . . . . . . . . Follow-up Attacks . | . . . . . . . . . . . . . . . . . . . . . Damage Inflicted 69517 | . 783 927 1230 1432 1011 1703 608 134 . 2416 1017 4134 4003 12243 6335 1828 15844 40 13388 441 Guns 10693 | . 783 927 1230 1432 616 935 608 134 . 1467 945 . . 729 887 . . . . . Cannons 40648 | . . . . . 395 768 . . . 474 . 4029 3072 8632 3959 1802 9914 40 7136 427 Explosions 18115 | . . . . . . . . . . 475 72 105 912 2882 1489 . 5928 . 6252 . Melee . | . . . . . . . . . . . . . . . . . . . . . Ramming 61 | . . . . . . . . . . . . . 19 . . 26 2 . . 14 Kinetic . | . . . . . . . . . . . . . . . . . . . . . Thermal 64725 | . 783 889 1230 1432 1011 1703 608 134 . 1941 945 4134 3596 10545 4846 1802 15842 40 12817 427 Explosive 3026 | . . . . . . . . . . 475 72 . 388 415 1489 . . . 187 . Electromagnetic 1705 | . . 38 . . . . . . . . . . . 1283 . . . . 384 . Impact . | . . . . . . . . . . . . . . . . . . . . . Slashing . | . . . . . . . . . . . . . . . . . . . . . Piercing . | . . . . . . . . . . . . . . . . . . . . . Highest Corruption 19 | . . . 1 1 1 1 2 2 2 14 . . 3 7 12 1 17 . 19 19 Average Corruption 6 | . . . 1 1 1 1 1 2 2 12 . . 2 4 8 1 10 . 7 19 Corruption Purged . | . . . . . . . . . . . . . . . . . . . . . Corruption Blocked 20 | . . . . . . . . . . . . . . . . . . . 20 . Effects 392 | . . . . 6 9 3 29 15 1 79 . . 3 52 49 4 87 . 47 8 Message Errors 85 | . . . . 2 1 1 8 2 1 15 . . . 7 8 1 22 . 14 3 Matter Fused 110 | . . . . 2 4 1 10 5 . 28 . . 1 14 7 1 21 . 14 2 Heat Flow Errors 56 | . . . . . . . 2 2 . 17 . . 1 7 6 2 13 . 5 1 Energy Discharges 39 | . . . . 1 2 . 2 1 . 4 . . 1 8 7 . 9 . 3 1 Parts Rejected 4 | . . . . . 1 . . 1 . . . . . 1 . . . . . 1 Data Loss (minor) 30 | . . . . . 1 1 4 1 . 8 . . . 2 3 . 7 . 3 . Data Loss (major) 27 | . . . . . . . 3 1 . 4 . . . 8 5 . 5 . 1 . Misfires 16 | . . . . . . . . 2 . 3 . . . 1 3 . 5 . 2 . Alerts 10 | . . . . . . . . . . . . . . 3 . . 4 . 3 . Misdirections 1 | . . . . . . . . . . . . . . . 1 . . . . . Weapon Failures 14 | . . . . 1 . . . . . . . . . 1 9 . 1 . 2 . Overload Shots . | . . . . . . . . . . . . . . . . . . . . . Overflow Damage 5782 | . . . . . 9 21 . . . 39 . 92 165 795 479 18 2100 . 2058 6 Projectiles 3422 | . . . . . 9 21 . . . 36 . 63 81 379 436 18 1484 . 889 6 Explosions 2360 | . . . . . . . . . . 3 . 29 84 416 43 . 616 . 1169 . Melee . | . . . . . . . . . . . . . . . . . . . . . Knockbacks . | . . . . . . . . . . . . . . . . . . . . . Impact . | . . . . . . . . . . . . . . . . . . . . . Kinetic . | . . . . . . . . . . . . . . . . . . . . . Secondary . | . . . . . . . . . . . . . . . . . . . . . Self-Inflicted Damage 1972 | . . . . . . . . . . 77 1 26 91 699 116 . 190 . 769 3 Shots 34 | . . . . . . . . . . 4 1 1 3 14 3 . 3 . 5 . Rammed 5 | . . . . . . . . . . . . . 1 . . 1 1 . . 2 Targets Rammed 6 | . . . . . . . . . . . . . 1 . . 1 2 . . 2 Kicked . | . . . . . . . . . . . . . . . . . . . . . Crushed 1 | . . . . . . . . . . . . . . . . . 1 . . . Highest Temperature 564 | . 213 22 105 226 . 25 212 196 . 284 171 326 167 295 246 362 274 . 172 564 Average Temperature 65 | . 56 6 25 63 . 9 106 80 . 54 84 65 25 75 87 122 74 . 49 197 Received Heat Transfer 5202 | . 129 216 396 279 . 513 . 60 . 561 153 338 134 558 474 102 226 8 974 81 Effects 10 | . . . . . . . . . . . . 3 . . 3 1 . . . 3 Shutdowns 2 | . . . . . . . . . . . . . . . . 1 . . . 1 Energy Bleed 1 | . . . . . . . . . . . . . . . . . . . . 1 Interference 6 | . . . . . . . . . . . . 3 . . 3 . . . . . Damage (minor) 1 | . . . . . . . . . . . . . . . . . . . . 1 Siege Activations 1 | . . . . . . . . . . . . . . . . . . . 1 . Total Turns 18 | . . . . . . . . . . . . . . . . . . . 18 . Longest Duration 18 | . . . . . . . . . . . . . . . . . . . 18 . Robots Corrupted 6 | . . . . . . . . . . . . . . 5 . . . . 1 . Combat Hostiles 6 | . . . . . . . . . . . . . . 5 . . . . 1 . Parts Fried 18 | . . . . . . . . . . . . . . 15 . . . . 3 . Impact Corruptions . | . . . . . . . . . . . . . . . . . . . . . Robots Melted 52 | . . . 1 . 1 3 . . . 2 . 4 1 3 3 . 6 2 26 . Combat Hostiles 45 | . . . . . 1 3 . . . 2 . 3 . 2 3 . 6 2 23 . Parts Melted 254 | . 3 3 8 3 4 11 1 . . 17 4 8 9 23 12 1 34 5 108 . Heat Transferred 61126 | . 2887 2169 3273 2997 2072 3589 1332 222 . 3330 1480 3000 2900 9447 4197 1554 10245 . 6062 370 Parts Sabotaged 3 | . . . . . . . . . . 3 . . . . . . . . . . Parts Stolen 2 | . . . . . . . . 2 . . . . . . . . . . . . Parts Stripped . | . . . . . . . . . . . . . . . . . . . . . Power Chain Reactions 13 | . . . . . . . . . . . . 2 3 7 . . . . 1 . Missiles Intercepted . | . . . . . . . . . . . . . . . . . . . . . Alert | -11 -10 -9 -8 -8 -8 -6 -6 -6 -6 -5 -5 -5 -5 -4 -4 -3 -3 -2 -2 -2 ------- Run | Scr Mat Mat Mat Sto Rec Fac Low Low Dat Pro Fac Gar Fac Fac Arm Res Tes Res Qua Sec Peak Influence 1742 | . 155 187 238 231 170 921 . . . . 122 1742 679 566 549 192 1220 404 1398 570 Initial 900 | . . . 46 23 10 900 . . . . . 65 679 72 54 85 80 329 170 499 Average 495 | . 49 53 121 65 44 753 . . . . 28 1207 441 195 143 101 696 344 959 532 Maximum Alert Level 5 | . . . 1 1 . 3 . . . . . 5 2 2 2 . 4 2 4 2 Low Security (%) 40 | 100 100 100 81 92 100 . . . . . 100 4 . 52 78 100 5 . 8 . Level 1 15 | . . . 18 7 . 3 . . . . . 6 45 38 18 . 11 80 6 . Level 2 13 | . . . . . . 27 . . . . . 3 54 9 3 . 30 19 9 100 Level 3 14 | . . . . . . 69 . . . . . 24 . . . . 43 . 26 . Level 4 10 | . . . . . . . . . . . . 28 . . . . 8 . 49 . Level 5 4 | . . . . . . . . . . . . 33 . . . . . . . . High Security . | . . . . . . . . . . . . . . . . . . . . . Max Security . | . . . . . . . . . . . . . . . . . . . . . Squads Dispatched 74 | . 2 . 4 2 . 4 . . . 1 3 . 3 12 4 2 20 1 15 1 Investigation 14 | . 2 . 3 . . 1 . . . . . . . 3 2 1 1 . 1 . Extermination 23 | . . . . . . 2 . . . . 1 . 2 4 1 1 7 . 5 . Reinforcement 20 | . . . 1 2 . 1 . . . . . . . 3 1 . 6 1 4 1 Assault 14 | . . . . . . . . . . 1 . . 1 1 . . 6 . 5 . Garrison 3 | . . . . . . . . . . . 2 . . 1 . . . . . . Intercept . | . . . . . . . . . . . . . . . . . . . . . Searches Triggered 2 | . . . . . . 2 . . . . . . . . . . . . . . Data Miner Redirects 13 | . . . . . . . . . . . . . . 3 1 1 3 . 5 . Construction Impeded 3 | . . . . . . . . . . . . . . 1 . . 2 . . . Haulers Reinforced 3 | . . . . . . . . . . . . . . 2 . . . . 1 . Active Scanning Responses . | . . . . . . . . . . . . . . . . . . . . . Cargo Convoy Interrupts . | . . . . . . . . . . . . . . . . . . . . . Stealth | -11 -10 -9 -8 -8 -8 -6 -6 -6 -6 -5 -5 -5 -5 -4 -4 -3 -3 -2 -2 -2 --------- Run | Scr Mat Mat Mat Sto Rec Fac Low Low Dat Pro Fac Gar Fac Fac Arm Res Tes Res Qua Sec Distress Signals 12 | . 1 1 1 1 . . . . . . . . . 4 1 1 2 . . . Communications Jammed 55 | . . . . . . . . . . . . . . . . . . . 55 . Distress Signals 55 | . . . . . . . . . . . . . . . . . . . 55 . Times Spotted 520 | . 14 22 17 14 28 17 3 3 . 25 5 33 23 74 51 13 76 3 91 8 Peak Tracking Total 13 | . 3 6 5 5 3 6 2 2 . 10 2 10 6 7 13 5 7 3 7 5 Tactical Retreats 24 | . . . . . . 2 . 1 . . 1 3 2 2 2 1 . . 9 1 Traps | -11 -10 -9 -8 -8 -8 -6 -6 -6 -6 -5 -5 -5 -5 -4 -4 -3 -3 -2 -2 -2 ------- Run | Scr Mat Mat Mat Sto Rec Fac Low Low Dat Pro Fac Gar Fac Fac Arm Res Tes Res Qua Sec Traps Triggered 20 | . . . 2 2 . 3 . . . . . 2 1 3 5 . 1 . 1 . Indirectly . | . . . . . . . . . . . . . . . . . . . . . Trap Hack Attempts . | . . . . . . . . . . . . . . . . . . . . . Triggered . | . . . . . . . . . . . . . . . . . . . . . Disarmed . | . . . . . . . . . . . . . . . . . . . . . Reprogrammed 8 | . . . . . . . . . . . . . . 5 . . . . 3 . Reused 5 | . . . . . . . . . . . . . . 2 . . . . 3 . Traps Extracted . | . . . . . . . . . . . . . . . . . . . . . Installed . | . . . . . . . . . . . . . . . . . . . . . Triggered 6 | . . . . . . . . 1 . . . . . 2 . . . . 3 . Machines | -11 -10 -9 -8 -8 -8 -6 -6 -6 -6 -5 -5 -5 -5 -4 -4 -3 -3 -2 -2 -2 ---------- Run | Scr Mat Mat Mat Sto Rec Fac Low Low Dat Pro Fac Gar Fac Fac Arm Res Tes Res Qua Sec Machines Disabled 117 | . . . 1 4 2 . 1 . . 3 . 9 10 38 9 . 24 . 16 . Max in Single Turn 11 | . . . 1 1 1 . 1 . . 1 . 2 4 11 1 . 2 . 4 . Garrison Access 5 | . . . . 1 . . . . . . . . 1 1 . . 1 . 1 . Garrison Relay 4 | . . . . . . . . . . . . 4 . . . . . . . . Phase Generator 1 | . . . . . . . . . . . . 1 . . . . . . . . Energy Cycler 1 | . . . . . . . . . . . . . . . 1 . . . . . Machines Sabotaged . | . . . . . . . . . . . . . . . . . . . . . Garrisons Compromised . | . . . . . . . . . . . . . . . . . . . . . Overloaded Fab Kills . | . . . . . . . . . . . . . . . . . . . . . Hacking | -11 -10 -9 -8 -8 -8 -6 -6 -6 -6 -5 -5 -5 -5 -4 -4 -3 -3 -2 -2 -2 --------- Run | Scr Mat Mat Mat Sto Rec Fac Low Low Dat Pro Fac Gar Fac Fac Arm Res Tes Res Qua Sec Machines Accessed 75 | . 6 3 8 3 9 1 . 1 4 1 2 . 6 11 5 1 7 . 7 . Terminals 41 | . 4 3 6 2 5 . . . . . . . 2 5 4 . 4 . 6 . Fabricators 5 | . . . . . . 1 . . . . . . . 3 1 . . . . . Repair Stations 5 | . 1 . . . . . . . . . 1 . 2 . . . 1 . . . Recycling Units 9 | . 1 . 1 . 4 . . . . . . . 1 2 . . . . . . Scanalyzers 4 | . . . 1 . . . . . . . . . . . . 1 1 . 1 . Garrison Access 5 | . . . . 1 . . . . . . 1 . 1 1 . . 1 . . . Total Hacks 201 | . 15 12 21 7 29 1 . 1 30 1 4 . 11 26 9 3 14 . 17 . Successful 140 | . 9 8 16 5 21 1 . 1 30 1 3 . 9 15 4 . 7 . 10 . Failed 61 | . 6 4 5 2 8 . . . . . 1 . 2 11 5 3 7 . 7 . Catastrophic 8 | . 1 1 1 . . . . . . . . . . 1 1 1 . . 2 . Database Lockouts . | . . . . . . . . . . . . . . . . . . . . . Manual 93 | . 12 7 17 4 14 1 . . 1 . . . 6 11 6 3 4 . 7 . Terminals 120 | . 12 12 18 6 21 . . . . . . . 6 13 7 . 9 . 16 . Fabricators 10 | . . . . . . 1 . . . . . . . 7 2 . . . . . Repair Stations 8 | . 1 . . . . . . . . . 3 . 2 . . . 2 . . . Recycling Units 18 | . 2 . 2 . 8 . . . . . . . 1 5 . . . . . . Scanalyzers 7 | . . . 1 . . . . . . . . . . . . 3 2 . 1 . Garrison Access 6 | . . . . 1 . . . . . . 1 . 2 1 . . 1 . . . Terminal Hacks 76 | . 2 5 7 3 8 . . 1 30 1 . . 2 5 1 . 4 . 7 . Record 13 | . . . . . . . . . 11 1 . . . . . . 1 . . . Part Schematic 11 | . . . . . . . . . 11 . . . . . . . . . . . Robot Schematic 5 | . . . . . . . . . 5 . . . . . . . . . . . Robot Analysis 2 | . . . . . 2 . . . . . . . . . . . . . . . Prototype ID Bank 8 | . 1 2 . . . . . . 3 . . . 1 1 . . . . . . Open Door 4 | . . . . . . . . 1 . . . . . . 1 . . . 2 . Level Access Points 5 | . . 1 1 1 1 . . . . . . . . . . . . . 1 . Branch Access Points 4 | . . . 1 . . . . . . . . . . 1 . . 1 . 1 . Emergency Access Points 2 | . . . . . . . . . . . . . 1 . . . . . 1 . Terminal Index 3 | . 1 . 1 . . . . . . . . . . . . . 1 . . . Fabricator Index 1 | . . . 1 . . . . . . . . . . . . . . . . . Unreport Threat 5 | . . 2 . . 2 . . . . . . . . 1 . . . . . . Locate Traps 1 | . . . . . . . . . . . . . . . . . . . 1 . Reprogram Traps 3 | . . . . . . . . . . . . . . 2 . . . . 1 . Recall Investigation 1 | . . . . . 1 . . . . . . . . . . . . . . . Recall Reinforcements 1 | . . . 1 . . . . . . . . . . . . . . . . . Registered Components 1 | . . . . . 1 . . . . . . . . . . . . . . . Registered Prototypes 1 | . . . . 1 . . . . . . . . . . . . . . . . Zone Layout 4 | . . . 2 1 1 . . . . . . . . . . . . . . . Protovariant Controls 1 | . . . . . . . . . . . . . . . . . 1 . . . Fabricator Hacks . | . . . . . . . . . . . . . . . . . . . . . Repair Station Hacks 2 | . . . . . . . . . . . 2 . . . . . . . . . Scan Component 1 | . . . . . . . . . . . 1 . . . . . . . . . Repair 1 | . . . . . . . . . . . 1 . . . . . . . . . Recycling Unit Hacks 6 | . . . . . 3 . . . . . . . 1 2 . . . . . . Report Inventory 3 | . . . . . 3 . . . . . . . . . . . . . . . Retrieve Matter 2 | . . . . . . . . . . . . . . 2 . . . . . . Retrieve Components 1 | . . . . . . . . . . . . . 1 . . . . . . . Scanalyzer . | . . . . . . . . . . . . . . . . . . . . . Garrison Access Hacks 5 | . . . . 1 . . . . . . 1 . 1 1 . . 1 . . . Unlock Access 1 | . . . . . . . . . . . 1 . . . . . . . . . Seal Access 4 | . . . . 1 . . . . . . . . 1 1 . . 1 . . . Unauthorized Hacks 50 | . 7 3 9 1 9 1 . . . . . . 5 7 3 . 2 . 3 . Terminals 30 | . 4 3 6 1 4 . . . . . . . 3 4 2 . . . 3 . Assimilate 2 | . . . 1 . . . . . . . . . . . . . . . 1 . Botnet 26 | . 4 3 5 1 4 . . . . . . . 2 4 2 . . . 1 . Detonate 1 | . . . . . . . . . . . . . 1 . . . . . . . Operators 1 | . . . . . . . . . . . . . . . . . . . 1 . Fabricators 5 | . . . . . . 1 . . . . . . . 3 1 . . . . . Fabnet 4 | . . . . . . 1 . . . . . . . 2 1 . . . . . Recompile 1 | . . . . . . . . . . . . . . 1 . . . . . . Repair Stations 4 | . 1 . . . . . . . . . . . 2 . . . 1 . . . Mechanics 4 | . 1 . . . . . . . . . . . 2 . . . 1 . . . Recycling Units 9 | . 2 . 2 . 5 . . . . . . . . . . . . . . . Reject 5 | . . . 1 . 4 . . . . . . . . . . . . . . . Recyclers 3 | . 1 . 1 . 1 . . . . . . . . . . . . . . . Tunnel 1 | . 1 . . . . . . . . . . . . . . . . . . . Scanalyzers 2 | . . . 1 . . . . . . . . . . . . . 1 . . . Researchers 2 | . . . 1 . . . . . . . . . . . . . 1 . . . Garrison Access . | . . . . . . . . . . . . . . . . . . . . . Data Cores Recovered 1 | . . . . . . . . . . . . . . . . . . . 1 . Used . | . . . . . . . . . . . . . . . . . . . . . Hacking Detections 52 | . 5 3 7 1 7 . . . . . 2 . 4 8 4 1 6 . 4 . Full Trace Events 13 | . 1 . 3 . 2 . . . . . . . . 2 2 1 1 . 1 . Feedback Events 1 | . . . . . . . . . . . . . . . . 1 . . . . Corruption 1 | . . . . . . . . . . . . . . . . 1 . . . . Feedback Blocked . | . . . . . . . . . . . . . . . . . . . . . Robot Schematics Acquired 8 | . . . . . . . . . 5 . . . . . . . . . 3 . Robots Built . | . . . . . . . . . . . . . . . . . . . . . Authchips . | . . . . . . . . . . . . . . . . . . . . . Time . | . . . . . . . . . . . . . . . . . . . . . Total Robot Build Rating . | . . . . . . . . . . . . . . . . . . . . . Part Schematics Acquired 19 | . . . . . . . . . 11 . . . . . . . 4 . 4 . Parts Built . | . . . . . . . . . . . . . . . . . . . . . Authchips . | . . . . . . . . . . . . . . . . . . . . . Time . | . . . . . . . . . . . . . . . . . . . . . Total Part Build Rating . | . . . . . . . . . . . . . . . . . . . . . Parts Repaired 1 | . . . . . . . . . . . 1 . . . . . . . . . Time 12 | . . . . . . . . . . . 12 . . . . . . . . . Parts Recycled . | . . . . . . . . . . . . . . . . . . . . . Recycled Matter . | . . . . . . . . . . . . . . . . . . . . . Retrieved Matter 506 | . . . . . . . . . . . . . . 506 . . . . . . Retrieved Components 1 | . . . . . . . . . . . . . 1 . . . . . . . Parts Scanalyzed . | . . . . . . . . . . . . . . . . . . . . . Part Schematics Acquired . | . . . . . . . . . . . . . . . . . . . . . Parts Damaged . | . . . . . . . . . . . . . . . . . . . . . Bothacking | -11 -10 -9 -8 -8 -8 -6 -6 -6 -6 -5 -5 -5 -5 -4 -4 -3 -3 -2 -2 -2 ------------ Run | Scr Mat Mat Mat Sto Rec Fac Low Low Dat Pro Fac Gar Fac Fac Arm Res Tes Res Qua Sec Used RIF Installer . | . . . . . . . . . . . . . . . . . . . . . Robots Hacked 13 | . . . . . . . . . . 1 . 1 1 1 . 1 6 . 2 . Non-combat . | . . . . . . . . . . . . . . . . . . . . . Combat 13 | . . . . . . . . . . 1 . 1 1 1 . 1 6 . 2 . Robot Hacks Applied . | . . . . . . . . . . . . . . . . . . . . . Relay Couplers Released 17 | . . . . . . . . . . . . 17 . . . . . . . . Machine Destruction 17 | . . . . . . . . . . . . 17 . . . . . . . . Fabnet Peak Effective % 6 | . . . . . . . . . . 3 3 3 3 1 1 6 6 2 2 2 Autooverrided 13 | . . . . . . . . . . 1 . 1 1 1 . 1 6 . 2 . Robots Rewired 5 | . . . . . . . . . . 2 . . . . 2 . 1 . . . Allies Hacked 1 | . . . . . . . . . . 1 . . . . . . . . . . Hacks Repelled . | . . . . . . . . . . . . . . . . . . . . . Allies | -11 -10 -9 -8 -8 -8 -6 -6 -6 -6 -5 -5 -5 -5 -4 -4 -3 -3 -2 -2 -2 -------- Run | Scr Mat Mat Mat Sto Rec Fac Low Low Dat Pro Fac Gar Fac Fac Arm Res Tes Res Qua Sec Total Allies 23 | . . . . . . . . . . 4 . 1 1 5 2 1 7 . 2 . Largest Group 4 | . . . . . . . . . . 3 . 1 1 3 4 1 2 . 1 . Highest-Rated Group 185 | . . . . . . . . . . 122 . 12 30 138 185 116 176 . 42 . Highest-Rated Ally 146 | . . . . . . . . . . 96 . 12 30 99 65 116 146 . 42 . Total Orders . | . . . . . . . . . . . . . . . . . . . . . Ally Attacks 106 | . . . . . . . . . . 25 . 2 3 18 7 . 46 . 5 . Total Damage 3626 | . . . . . . . . . . 732 . 34 94 468 201 . 1906 . 191 . Kills 23 | . . . . . . . . . . 4 . . . 4 1 . 14 . . . Allies Corrupted 2 | . . . . . . . . . . . . . . . 2 . . . . . Allies Melted . | . . . . . . . . . . . . . . . . . . . . . Intel | -11 -10 -9 -8 -8 -8 -6 -6 -6 -6 -5 -5 -5 -5 -4 -4 -3 -3 -2 -2 -2 ------- Run | Scr Mat Mat Mat Sto Rec Fac Low Low Dat Pro Fac Gar Fac Fac Arm Res Tes Res Qua Sec Robot Analysis Total 2 | . . . . . 2 . . . . . . . . . . . . . . . Derelict Logs Recovered 5 | . . . . . . . 1 1 . 3 . . . . . . . . . . Drone Launches . | . . . . . . . . . . . . . . . . . . . . . Drone Recoveries . | . . . . . . . . . . . . . . . . . . . . . Exploration | -11 -10 -9 -8 -8 -8 -6 -6 -6 -6 -5 -5 -5 -5 -4 -4 -3 -3 -2 -2 -2 ------------- Run | Scr Mat Mat Mat Sto Rec Fac Low Low Dat Pro Fac Gar Fac Fac Arm Res Tes Res Qua Sec Turns Passed 26252 | 144 872 662 945 1045 810 829 2166 1185 142 2312 561 2761 1610 2954 1213 533 2753 235 2362 158 Spaces Moved 13328 | 85 445 303 427 483 348 401 1267 699 87 1203 277 1279 871 1407 602 267 1481 118 1173 105 Core 128 | 5 . . . . . . . . . . . . . . . . . . 90 33 Treads 12869 | 80 445 303 427 483 348 401 1267 699 87 1203 277 1279 871 1220 499 267 1481 118 1083 31 Legs 290 | . . . . . . . . . . . . . . 187 103 . . . . . Wheels 41 | . . . . . . . . . . . . . . . . . . . . 41 Hover . | . . . . . . . . . . . . . . . . . . . . . Flight . | . . . . . . . . . . . . . . . . . . . . . Fastest Speed 50 | 50 160 160 160 166 166 165 165 165 165 162 162 166 160 114 114 155 155 161 50 50 Average Speed 160 | 153 160 160 162 166 194 166 165 165 165 162 163 166 160 160 147 159 160 162 144 105 Slowest Speed 330 | 160 160 160 166 166 250 167 165 165 165 250 167 167 166 330 225 165 161 243 300 240 Overloaded Moves . | . . . . . . . . . . . . . . . . . . . . . Propulsion Burnouts . | . . . . . . . . . . . . . . . . . . . . . Robots Hopped . | . . . . . . . . . . . . . . . . . . . . . Cave-ins Triggered 1 | . . . . . . . . . . . . 1 . . . . . . . . Exploration Rate (%) 48 | 5 41 46 38 62 92 11 98 69 71 98 4 98 16 33 34 6 95 4 90 3 Regions Visited 20 Branch Regions 10 Pre-discovered Areas 3 | . 1 . . . . . . 1 1 . . . . . . . . . . . Known Exits Taken 19 | 1 1 1 1 1 1 1 1 1 1 1 1 . 1 1 1 1 1 1 1 . Unknown Exits Taken . | . . . . . . . . . . . . . . . . . . . . . Scrap Searched 9 | . . . . . . . 3 2 . 4 . . . . . . . . . . Spaces Dug 103 | . . . . . . . . . . 40 . 28 . . . . 5 . 30 . Terrain Destroyed 2240 | . . . . . 6 . . . . 112 15 308 75 258 92 7 416 . 949 2 Melee . | . . . . . . . . . . . . . . . . . . . . . Projectile 332 | . . . . . 6 . . . . 66 . 193 7 15 5 7 21 . 10 2 AOE 1907 | . . . . . . . . . . 46 15 115 68 243 87 . 395 . 938 . Terrain Rammed . | . . . . . . . . . . . . . . . . . . . . . Walls Destroyed . | . . . . . . . . . . . . . . . . . . . . . Machines Disabled . | . . . . . . . . . . . . . . . . . . . . . Actions | -11 -10 -9 -8 -8 -8 -6 -6 -6 -6 -5 -5 -5 -5 -4 -4 -3 -3 -2 -2 -2 --------- Run | Scr Mat Mat Mat Sto Rec Fac Low Low Dat Pro Fac Gar Fac Fac Arm Res Tes Res Qua Sec Total 16384 | 96 534 392 591 617 396 467 1307 722 86 1368 345 1511 981 2022 872 370 1860 153 1555 139 Wait 645 | . 12 3 85 26 1 7 15 15 . 5 14 5 9 185 58 42 53 15 92 3 Move 13307 | 84 444 302 426 482 347 400 1266 698 86 1202 276 1277 870 1406 601 266 1480 117 1172 105 Hop . | . . . . . . . . . . . . . . . . . . . . . Pick Up 93 | 6 7 4 7 6 . 1 2 1 . . 1 5 4 16 7 2 14 1 9 . Fast Attach 211 | 6 3 3 5 10 1 5 1 2 . 19 8 11 12 31 14 10 28 1 33 8 Attach 124 | . . 3 3 3 1 5 . 1 . 8 4 3 3 26 12 . 24 4 21 3 Detach 156 | . 1 2 4 9 1 1 1 1 . 6 7 5 8 28 10 . 35 3 29 5 Swap 54 | . 1 3 4 4 . . 2 . . 4 4 5 1 12 4 . 7 2 1 . Drop 197 | . 1 5 12 18 1 . 2 . . 1 9 12 18 25 20 . 37 1 34 1 Fire 1537 | . 65 67 45 52 44 48 18 4 . 119 22 187 55 293 133 49 151 9 164 12 Melee 6 | . . . . 6 . . . . . . . . . . . . . . . . Ram 1 | . . . . . . . . . . . . . . . . . . . . 1 Kick . | . . . . . . . . . . . . . . . . . . . . . Crush 5 | . . . . . . . . . . . . . 1 . . 1 2 . . 1 Escape Stasis 1 | . . . . . . . . . . . . 1 . . . . . . . . Rewire 47 | . . . . 1 . . . . . 4 . . . . 13 . 29 . . . Trap . | . . . . . . . . . . . . . . . . . . . . . Miscellaneous . | . . . . . . . . . . . . . . . . . . . . . Route ------- -11/Scrapyard -10/Materials (discovered 2 exits: *Mat / *Min) -9/Materials (discovered 5 exits: *Mat x3 / *Min x2) -8/Materials (discovered 5 exits: *Fac x3 / *Sto x2) -8/Storage (discovered 2 exits: Fac / *Rec) -8/Recycling -6/Factory -6/Lower Caves -6/Lower Caves -6/Data Miner -5/Proximity Caves -5/Factory (discovered 2 exits: Fac / Gar) -5/Garrison (discovered 3 exits: *Fac x3) -5/Factory -4/Factory (discovered 3 exits: Upp x2 / *Arm) -4/Armory -3/Research (discovered 2 exits: *Tes x2) -3/Testing -2/Research (discovered 2 exits: *Acc / *Qua) -2/Quarantine (discovered 2 exits: *Acc / *Sec) -2/Section 7 History --------- Turn | Location | Event 5 | -11/Scrapyard | Identified exit to Materials 5 | -11/Scrapyard | Discovered exit to Materials (range 16) 145 | -11/Scrapyard | Entered Materials 145 | -10/Materials | Evolved 1 slot: Utility x1 317 | -10/Materials | Build established: Hacker-Mutant 416 | -10/Materials | Identified exit to Mines 416 | -10/Materials | Discovered exit to Mines (range 12) 943 | -10/Materials | Identified exit to Materials 943 | -10/Materials | Discovered exit to Materials (range 15) 1017 | -10/Materials | Entered another Materials area 1017 | -9/Materials | Evolved 2 slots: Utility x2 1116 | -9/Materials | Identified exit to Mines 1116 | -9/Materials | Discovered exit to Mines (range 3) 1257 | -9/Materials | Discovered exit to Mines (range 15) 1457 | -9/Materials | Identified exit to Materials 1679 | -9/Materials | Entered another Materials area 1679 | -8/Materials | Evolved 2 slots: Power x1, Propulsion x1 1850 | -8/Materials | Identified exit to Factory 1861 | -8/Materials | Build established: Scavenger-Mutant 2226 | -8/Materials | Identified exit to Storage 2451 | -8/Materials | Build established: Hacker-Mutant 2624 | -8/Materials | Entered Storage 3497 | -8/Storage | Identified exit to Recycling 3497 | -8/Storage | Discovered exit to Recycling (range 3) 3669 | -8/Storage | Entered Recycling 3705 | -8/Recycling | Spotter reported a threat 3736 | -8/Recycling | Spotter reported a threat 3790 | -8/Recycling | Build established: Hacker-Skirmisher 3866 | -8/Recycling | Spotter reported a threat 3872 | -8/Recycling | Identified exit to Factory 3889 | -8/Recycling | Spotter reported a threat 3972 | -8/Recycling | Spotter reported a threat 4000 | -8/Recycling | Spotter reported a threat 4031 | -8/Recycling | Spotter reported a threat 4061 | -8/Recycling | Spotter reported a threat 4064 | -8/Recycling | Spotter reported a threat 4067 | -8/Recycling | Spotter reported a threat 4115 | -8/Recycling | Spotter reported a threat 4116 | -8/Recycling | Spotter reported a threat 4134 | -8/Recycling | Spotter reported a threat 4239 | -8/Recycling | Spotter reported a threat 4240 | -8/Recycling | Spotter reported a threat 4304 | -8/Recycling | Spotter reported a threat 4305 | -8/Recycling | Spotter reported a threat 4344 | -8/Recycling | Spotter reported a threat 4348 | -8/Recycling | Spotter reported a threat 4361 | -8/Recycling | Spotter reported a threat 4379 | -8/Recycling | Spotter reported a threat 4390 | -8/Recycling | Spotter reported a threat 4390 | -8/Recycling | Spotter reported a threat 4443 | -8/Recycling | Spotter reported a threat 4446 | -8/Recycling | Spotter reported a threat 4446 | -8/Recycling | Spotter reported a threat 4479 | -8/Recycling | Entered Factory 4479 | -6/Factory | Evolved 4 slots: Power x1, Propulsion x1, Utility x2 4829 | -6/Factory | Search patrols dispatched 5179 | -6/Factory | Search patrols dispatched 5236 | -6/Factory | Lost 3 parts (2n1w) 5291 | -6/Factory | Identified exit to Lower Caves 5291 | -6/Factory | Discovered exit to Lower Caves (range 8) 5308 | -6/Factory | Entered Lower Caves 5731 | -6/Lower Caves | Learned Factory security intel 5932 | -6/Lower Caves | Encountered a Warlord checkpoint 6077 | -6/Lower Caves | Identified exit to Lower Caves 6077 | -6/Lower Caves | Discovered exit to Lower Caves (range 10) 6100 | -6/Lower Caves | Attacked by a delusional Derelict stockpiling parts 7474 | -6/Lower Caves | Entered another Lower Caves area 7911 | -6/Lower Caves | Found Prototype Device 8154 | -6/Lower Caves | Encountered a Warlord checkpoint 8155 | -6/Lower Caves | Identified exit to Data Miner 8155 | -6/Lower Caves | Discovered exit to Data Miner (range 10) 8305 | -6/Lower Caves | Spotted B-75 Beast 8408 | -6/Lower Caves | Build established: Scavenger-Skirmisher 8659 | -6/Lower Caves | Entered Data Miner 8659 | -6/Data Miner | Identified exit to Proximity Caves 8659 | -6/Data Miner | Discovered exit to Proximity Caves (range 6) 8689 | -6/Data Miner | Met Data Miner 8727 | -6/Data Miner | Learned location of Section 7 (-2) 8727 | -6/Data Miner | Acquired the access code to Warlord's prototype stash 8758 | -6/Data Miner | Received God Mode back door access code from Data Miner 8801 | -6/Data Miner | Entered Proximity Caves 8888 | -5/Proximity Caves | Found Alien Artifact 8888 | -5/Proximity Caves | Identified Dimensional Node Initializer 8888 | -5/Proximity Caves | Initialized slip node 8997 | -5/Proximity Caves | Escorted by Enhanced Grunt 8997 | -5/Proximity Caves | Attracted the attention of an 0b10 outpost 9062 | -5/Proximity Caves | Lost 3 parts (1p1n1w) 9115 | -5/Proximity Caves | Core integrity fell below 50% 9116 | -5/Proximity Caves | Destroyed 7 combat bots 9131 | -5/Proximity Caves | System corruption reached 10% 9181 | -5/Proximity Caves | Lost 14 parts (4p1n5u4w) 9239 | -5/Proximity Caves | Found Prototype Device 9239 | -5/Proximity Caves | Identified Exp. Thermal Shield 9490 | -5/Proximity Caves | Build established: Scavenger-Mutant 9571 | -5/Proximity Caves | Learned Factory emergency access door positions 9648 | -5/Proximity Caves | Attracted the attention of an 0b10 checkpoint 10210 | -5/Proximity Caves | Identified exit to Factory 10210 | -5/Proximity Caves | Discovered exit to Factory (range 11) 10658 | -5/Proximity Caves | Learned location of 1 exit from Factory 11113 | -5/Proximity Caves | Entered Factory 11113 | -5/Factory | Evolved 2 slots: Propulsion x1, Utility x1 11114 | -5/Factory | Identified exit to Factory 11157 | -5/Factory | Repaired Arm. Treads 11451 | -5/Factory | Garrison activated, responded to threat 11603 | -5/Factory | Garrison activated, responded to threat 11672 | -5/Factory | Identified exit to Garrison 11674 | -5/Factory | Entered Garrison 11724 | -5/Garrison | Triggered checkpoint 11779 | -5/Garrison | Phase Generator disabled 11802 | -5/Garrison | Garrison Relay disabled 11876 | -5/Garrison | Spotted B-75 Beast 11922 | -5/Garrison | Destroyed B-75 Beast 11996 | -5/Garrison | Destroyed 7 combat bots 12020 | -5/Garrison | Triggered checkpoint 12158 | -5/Garrison | Identified exit to Factory 12158 | -5/Garrison | Discovered exit to Factory (range 15) 12236 | -5/Garrison | Triggered checkpoint 12289 | -5/Garrison | Garrison Relay disabled 12362 | -5/Garrison | Triggered checkpoint 12457 | -5/Garrison | Discovered exit to Factory (range 14) 12522 | -5/Garrison | Triggered checkpoint 12558 | -5/Garrison | Triggered checkpoint 12623 | -5/Garrison | Garrison Relay disabled 12716 | -5/Garrison | Triggered checkpoint 12768 | -5/Garrison | Triggered checkpoint 12872 | -5/Garrison | Triggered checkpoint 12911 | -5/Garrison | Garrison Relay disabled 12983 | -5/Garrison | Discovered exit to Factory (range 5) 13108 | -5/Garrison | Spotted B-75 Beast 13113 | -5/Garrison | Destroyed B-75 Beast 13154 | -5/Garrison | Found Fusion Bomb Launcher 13171 | -5/Garrison | Found Unknown Protection 13171 | -5/Garrison | Identified Adv. Powered Armor 14164 | -5/Garrison | Crushed by falling debris 14435 | -5/Garrison | Entered Factory 15838 | -5/Factory | Discovered exit to Factory (range 15) 15935 | -5/Factory | First assault squad dispatched 16045 | -5/Factory | Entered another Factory area 16045 | -4/Factory | Evolved 2 slots: Utility x2 16046 | -4/Factory | Identified exit to Armory 16076 | -4/Factory | Identified Heart of Steel 16572 | -4/Factory | Incoming investigation squad redirected 16573 | -4/Factory | Garrison activated, responded to threat 16865 | -4/Factory | Found Quantum Capacitor 17399 | -4/Factory | Build established: Generator-Mutant 17478 | -4/Factory | Identified exit to Upper Caves 17765 | -4/Factory | Heart of Steel transformed into Warbot 17844 | -4/Factory | Incoming investigation squad redirected 18096 | -4/Factory | Destroyed 8 combat bots 18295 | -4/Factory | First assault squad dispatched 18325 | -4/Factory | Incoming assault squad redirected 18369 | -4/Factory | Build established: Scavenger-Mutant 18444 | -4/Factory | Lost 4 parts (1p1n2u) 18814 | -4/Factory | Allied Derelicts emerged from ambush trap array 18999 | -4/Factory | Entered Armory 18999 | -4/Armory | Accompanied by 2 allies 19513 | -4/Armory | Incoming investigation squad redirected 19798 | -4/Armory | System corruption reached 10% 20009 | -4/Armory | Core integrity fell below 50% 20036 | -4/Armory | Destroyed 8 combat bots 20038 | -4/Armory | Energy Cycler disabled 20046 | -4/Armory | Spotted B-86 Titan 20153 | -4/Armory | Lost 7 parts (3p3u1w) 20179 | -4/Armory | Identified exit to Research 20179 | -4/Armory | Discovered exit to Research (range 13) 20209 | -4/Armory | Core integrity fell below 20% 20212 | -4/Armory | Entered Research 20212 | -3/Research | Evolved 2 slots: Utility x2 20219 | -3/Research | Lost 7 parts (3p2n1u1w) 20342 | -3/Research | Incoming investigation squad redirected 20471 | -3/Research | Build established: Hacker-Mutant 20523 | -3/Research | Spotted B-86 Titan 20542 | -3/Research | Destroyed B-86 Titan 20710 | -3/Research | Identified exit to Testing 20710 | -3/Research | Discovered exit to Testing (range 15) 20731 | -3/Research | Discovered exit to Testing (range 15) 20745 | -3/Research | Entered Testing 20832 | -3/Testing | Found Prototype Device 20832 | -3/Testing | Identified Exp. Focal Shield 20954 | -3/Testing | Build established: Scavenger-Mutant 21021 | -3/Testing | Spotted Striker 21042 | -3/Testing | Found Prototype Energy Cannon 21042 | -3/Testing | Identified Imp. Potential Cannon 21065 | -3/Testing | Spotted Striker 21085 | -3/Testing | Destroyed Striker 21085 | -3/Testing | Destroyed Striker 21086 | -3/Testing | Spotted Alpha 7 21151 | -3/Testing | Destroyed Alpha 7 21186 | -3/Testing | Found Centrium Heavy Armor Plating 21232 | -3/Testing | Stole the SGEMP Prototype 21545 | -3/Testing | First assault squad dispatched 21564 | -3/Testing | Spotted PH-ZB1TIGWZ72 21566 | -3/Testing | Incoming assault squad redirected 21611 | -3/Testing | Rewired PH-ZB1TIGWZ72 21699 | -3/Testing | Protovariant out of control (PG-62JS6TXKYF) 21699 | -3/Testing | Unleashed a protovariant (PG-62JS6TXKYF) 21728 | -3/Testing | Incoming investigation squad redirected 21813 | -3/Testing | Local machine network offline 21857 | -3/Testing | Spotted PG-62JS6TXKYF 21874 | -3/Testing | Destroyed PG-62JS6TXKYF 21912 | -3/Testing | System corruption reached 10% 22031 | -3/Testing | Build established: Generator-Mutant 22165 | -3/Testing | Found Prototype Hackware 22165 | -3/Testing | Identified System Mapper 22237 | -3/Testing | Found Prototype Device 22237 | -3/Testing | Identified Exp. EM Disruption Field 22261 | -3/Testing | Identified exit to Research 22261 | -3/Testing | Discovered exit to Research (range 15) 22266 | -3/Testing | Incoming assault squad redirected 22362 | -3/Testing | Found Prototype Energy Cannon 22362 | -3/Testing | Identified Disintegrator 22478 | -3/Testing | Found Prototype Launcher 22486 | -3/Testing | Identified Z-bomb Delivery System 23032 | -3/Testing | Found Prototype Energy Gun 23032 | -3/Testing | Identified Hyp. EM Gauss Rifle 23273 | -3/Testing | Found Prototype Device 23273 | -3/Testing | Identified Exp. Hardlight Generator 23498 | -3/Testing | Entered Research 23498 | -2/Research | Evolved 2 slots: Utility x2 23678 | -2/Research | Identified exit to Access 23678 | -2/Research | Discovered exit to Access (range 8) 23678 | -2/Research | Identified exit to Quarantine 23678 | -2/Research | Discovered exit to Quarantine (range 6) 23733 | -2/Research | Entered Quarantine 24097 | -2/Quarantine | Incoming assault squad redirected 24150 | -2/Quarantine | Incoming assault squad redirected 24483 | -2/Quarantine | First assault squad dispatched 24507 | -2/Quarantine | Incoming assault squad redirected 24552 | -2/Quarantine | Found Prototype Reactor 24552 | -2/Quarantine | Identified Vortex Chain Reactor 24556 | -2/Quarantine | Found Vortex Chain Reactor 24560 | -2/Quarantine | Discovered exit to Access (range 15) 24614 | -2/Quarantine | Found Alien Artifact 24614 | -2/Quarantine | Identified Terrabomb 24614 | -2/Quarantine | Used Terrabomb 24718 | -2/Quarantine | Spotted Alpha 7 24728 | -2/Quarantine | Destroyed Alpha 7 24775 | -2/Quarantine | Found Prototype Processor 24775 | -2/Quarantine | Identified Exp. Target Analyzer 24786 | -2/Quarantine | Found Prototype Energy Gun 24786 | -2/Quarantine | Identified Enh. Gamma Rifle 24864 | -2/Quarantine | Found Alien Launcher 24864 | -2/Quarantine | Identified Sigix Terminator 24991 | -2/Quarantine | Met incapacitated Sigix Warrior 24991 | -2/Quarantine | Lockdown squad dispatched 25003 | -2/Quarantine | Incoming assault squad redirected 25012 | -2/Quarantine | Incoming investigation squad redirected 25040 | -2/Quarantine | Spotted Lightning 25047 | -2/Quarantine | Spotted Lightning 25050 | -2/Quarantine | Destroyed Lightning 25050 | -2/Quarantine | Spotted Lightning 25078 | -2/Quarantine | Destroyed Lightning 25113 | -2/Quarantine | Destroyed Lightning 25120 | -2/Quarantine | Found Prototype Device 25120 | -2/Quarantine | Identified Exp. Phase Shifter 25140 | -2/Quarantine | Found Prototype Energy Cannon 25140 | -2/Quarantine | Identified EMDS 25148 | -2/Quarantine | Found EMDS 25233 | -2/Quarantine | Found Alien Artifact 25233 | -2/Quarantine | Identified Subatomic Replicator 25401 | -2/Quarantine | System corruption reached 10% 25716 | -2/Quarantine | Found Alien Energy Cannon 25716 | -2/Quarantine | Identified Core Cannon 25939 | -2/Quarantine | Spotted Fortress 25980 | -2/Quarantine | Fired Sigix Terminator 26011 | -2/Quarantine | Core integrity fell below 50% 26051 | -2/Quarantine | Core integrity fell below 20% 26080 | -2/Quarantine | Lost 20 parts (3p3n14u) 26091 | -2/Quarantine | Identified exit to Section 7 26091 | -2/Quarantine | Discovered exit to Section 7 (range 6) 26095 | -2/Quarantine | Entered Section 7 26253 | -2/Section 7 | Destroyed by G-73 Enforcer with Phase Gun Last Messages --------------- 26237_ Penetrated by Slug. 26237_ Slug penetrates Wall. 26238_ H-88 Terminator destroyed. 26239_ Med. Treads destroyed. 26240_ System corrupted: Energy discharge (-140). 26240_ Penetrated by Slug. 26240_ Wheel destroyed. 26244_ Slug penetrates Wall. 26245_ Overheating: Quantum Reactor damaged (-23). 26245_ Destroyed Lgt. Quantum Reactor. 26247_ Slug penetrates Wall. 26248_ Wall collapses. 26248_ Wheel destroyed. 26249_ K-01 Serf collects debris. 26250_ Penetrated by Slug. 26251_ Overheating: Energy bleed (-92). 26252_ Power failure, Mic. Antimatter Reactor shutdown. 26252_ U-05 Engineer builds a Wall. 26253_ Slammed into G-73 Enforcer. 26253_ K-01 Serf collects debris. Map ----- +----------------------------------------------------+ | | | | | | | | | | | | | | | | | | | | | | | | | ????????????????????################?????????????? | | ????????????????????# #?????????????? | | ????????????????????# """ """S""" #?????????????? | | ????????????????????# """ """ """ #?????????????? | | ????????????????????# """ #?????????????? | | ????????????????????# #?????????????? | | ??????????########### #?????????????? | | ??????????###########+####;#+####### #???????? | | ??????????## R +???????? | | ??????????## k###### #???????? | | ??????????## g= ##?????????????????? | | ??????????## huu ###????????????????? | | ??????????## #########gg##### ????????????????? | | ??????????## ####### @ # ????????????????? | | ??????????## ##???## # ????????????????? | | ??????????### ####???## # ????????????????? | | ??????????### ####???## % % # ????????????????? | | ???????????## ##?????## * # ????????????????? | | ???????????## ##?????## # ????????????????? | | ???????????## ##?????## # ????????????????? | | ???????????## ##?????## ""T"" # ????????????????? | | ???????????## ##?????## """"" ##????????????????? | | ???????????## ##?????############????????????????? | | ???????????## ##?????############????????????????? | | ???????????## ##?????????????????????????????????? | | ???????????## ##?????????????????????????????????? | | ???????????## ##?????????????????????????????????? | | ??????????? # ##?????????????????????????????????? | | ??????????? # ##?????????????????????????????????? | | ??????????? # ##?????????????????????????????????? | | ??????????? # ##?????????????????????????????????? | | ??????????? + ?????????????????????????????????? | | ??????????? # ??????????????????????????????????? | | ????????????? ??????????????????????????????????? | | ????????????? ??????????????????????????????????? | | ????????????? ??????????????????????????????????? | | ????????????? ??????????????????????????????????? | | ????????????? ??????????????????????????????????? | +----------------------------------------------------+ Best States ------------- Heat Dissipation 163 Energy Generation 124 Energy Capacity 1550 Matter Stores 550 Matter Capacity 550 Sight Range 20 Robot Scan Range 16 Terrain Scan Range 14 Terrain Scan Density 10 Jamming Range 16 Power Amplification 70 Base Temperature (-) 150 EM Shielding 2 Armor Coverage 825 Resistance: KI 65 Resistance: TH 65 Resistance: EX 35 Resistance: EM 60 Resistance: I 35 Resistance: S 35 Resistance: P 35 Weapon Shielding 33 Phase Shifting 20 Evasion (%) 60 Targeting Accuracy 6 Recoil Reduction 5 Energy Filtering 30 Offensive Hacking 34 Defensive Hacking 10 Item Schematics ----------------- Combat Drone Bay | -6/Data Miner | Free Lgt. Regenerative Plating | -6/Data Miner | Free Cld. Gravmag System | -6/Data Miner | Free Prc. Matter Filter | -6/Data Miner | Free Enh. Force Rifle | -6/Data Miner | Free Impulse Thruster | -6/Data Miner | Free Adv. Thermal Shield | -6/Data Miner | Free Dispersion Rifle | -6/Data Miner | Free Adv. Force Field | -6/Data Miner | Free Adv. Reaction Control System | -6/Data Miner | Free Com. HERF Cannon | -6/Data Miner | Free Com. Particle Reactor | -3/Testing | Archive Centrium Medium Armor Plating | -3/Testing | Archive Exp. ECM Suite | -3/Testing | Archive Spectral Analyzer | -3/Testing | Archive Imp. Quantum Reactor | -2/Quarantine | Archive Exp. Coolant Injector | -2/Quarantine | Archive Adv. Thermal Defense Suite | -2/Quarantine | Archive Adv. Variable Charge Gun | -2/Quarantine | Archive Robot Schematics ------------------ H-66 Slayer | -6/Data Miner | Free I-36 Angel | -6/Data Miner | Free R-10 Processor | -6/Data Miner | Free L-41 Fighter | -6/Data Miner | Free X-72 Disruptor | -6/Data Miner | Free A-27 Freighter | -2/Quarantine | Archive C-65 Expert | -2/Quarantine | Archive R-06 Scavenger | -2/Quarantine | Archive Fabricated ------------ Nothing Alien Tech Used ----------------- Dimensional Node Initializer Terrabomb Sigix Terminator Subatomic Replicator Core Cannon Achievements -------------- Max Potential Challenges ------------ None Game ------ Seed MakeshiftZioniteBeamcaster Manual? 0 Play Time 04:39:05 Cumulative 109.8 hours Start 2022.05.03 @ 17:56:18 End 2022.05.04 @ 12:30:58 Sessions 3 Manual Loads 0 Difficulty Explorer Special Mode None Game No. 28 Rogue 0 Adventurer 1 Explorer 27 Win Type - Total 8 Types 5/0/1/2/0/0/0/0/0 Lore% 64 Gallery% 71 Achievement% 58 Wizard Run 0 Options --------- ASCII 0 Keyboard 1 Movement Arrows Keybinds 0 Fullscreen 0 Font 14/X11 Map View 76x50 Tactical HUD 1 Map Filters NONE Filters NONE Steam 1 RUN: 76e4bc45-0410-47ed-af25-2994fadb158a